fUSD/lending_fUSD_20250219
["ID","MTS","AMOUNT","RATE_DAILY","PERIOD"]
[353607680,1739957094542,-514.11,0.00014684,2]
[353607681,1739957094574,-819.39,0.00014684,2]
[353607682,1739957094606,-572.21,0.00014684,2]
[353607683,1739957094639,-500.0,0.00014684,2]
[353607684,1739957094672,-649.94,0.00014684,2]
[353607685,1739957094705,-500.0,0.00014684,2]
[353607686,1739957094737,-217.28269692,0.00014684,2]
[353607687,1739957094771,-1211.58,0.00014684,2]
[353607688,1739957094803,-1135.36,0.00014684,2]
[353607689,1739957094835,-516.15188994,0.00014684,2]
[353607690,1739957094871,-722.48,0.00014684,2]
[353607691,1739957094907,-500.0,0.00014684,2]
[353607692,1739957094944,-1272.14,0.00014684,2]
[353607693,1739957094980,-218.80212884,0.00014684,2]
[353607694,1739957095015,-712.89,0.00014684,2]
[353607695,1739957095050,-500.0,0.00014684,2]
[353607696,1739957095084,-500.0,0.00014684,2]
[353607697,1739957095117,-862.66,0.00014684,2]
[353607698,1739957095152,-1233.72,0.00014684,2]
[353607699,1739957095190,-740.17,0.00014684,2]
[353607700,1739957095226,-758.66,0.00014684,2]
[353607701,1739957095264,-500.0,0.00014684,2]
[353607702,1739957095300,-601.16,0.00014684,2]
[353607703,1739957095339,-593.48,0.00014684,2]
[353607704,1739957095376,-689.44,0.00014684,2]
[353607705,1739957095413,-500.0,0.00014684,2]
[353607706,1739957095453,-774.93,0.00014684,2]
[353607707,1739957095492,-500.0,0.00014684,2]
[353607708,1739957095532,-1397.033156,0.00014684,2]
[353607709,1739957095571,-500.0,0.00014684,2]
[353607710,1739957095609,-1325.26,0.00014684,2]
[353607711,1739957095645,-500.0,0.00014684,2]
[353607712,1739957095682,-500.0,0.00014684,2]
[353607713,1739957095720,-750.16,0.00014684,2]
[353607714,1739957095757,-500.0,0.00014684,2]
[353607715,1739957095791,-162.079268,0.00014684,2]
[353607716,1739957095828,-1394.43,0.00014684,2]
[353607717,1739957095866,-500.0,0.00014684,2]
[353607718,1739957095907,-156.190118,0.00014684,2]
[353607719,1739957095950,-500.0,0.00014684,2]
[353607720,1739957095989,-500.0,0.00014684,2]
[353607721,1739957096027,-638.51,0.00014684,2]
[353607722,1739957096064,-500.0,0.00014684,2]
[353607723,1739957096099,-500.0,0.00014684,2]
[353607724,1739957096135,-500.0,0.00014684,2]
[353607725,1739957096170,-916.97,0.00014684,2]
[353607726,1739957096204,-500.0,0.00014684,2]
[353607727,1739957096238,-571.77,0.00014684,2]
[353607728,1739957096273,-500.0,0.00014684,2]
[353607729,1739957096309,-535.59,0.00014684,2]
[353607730,1739957096346,-543.64,0.00014684,2]
[353607731,1739957096381,-1263.66,0.00014684,2]
[353607732,1739957096415,-646.22,0.00014684,2]
[353607733,1739957096449,-865.23,0.00014684,2]
[353607734,1739957096484,-592.33,0.00014684,2]
[353607735,1739957096518,-1825.346312,0.00014684,2]
[353607736,1739957096552,-646.68,0.00014684,2]
[353607737,1739957096591,-597.97,0.00014684,2]
[353607738,1739957096626,-694.2,0.00014684,2]
[353607739,1739957096660,-626.11994044,0.00014684,2]
[353607740,1739957096695,-1174.15,0.00014684,2]
[353607741,1739957096728,-500.0,0.00014684,2]
[353607742,1739957096763,-878.0,0.00014684,2]
[353607743,1739957096798,-514.78512029,0.00014684,2]
[353607744,1739957096834,-825.52,0.00014684,2]
[353607745,1739957096873,-500.0,0.00014684,2]
[353607746,1739957096911,-500.0,0.00014684,2]
[353607747,1739957096951,-500.0,0.00014684,2]
[353607748,1739957096991,-516.38,0.00014684,2]
[353607749,1739957097029,-500.0,0.00014684,2]
[353607750,1739957097070,-1264.71,0.00014684,2]
[353607751,1739957097106,-906.18,0.00014684,2]
[353607752,1739957097142,-500.0,0.00014684,2]
[353607753,1739957097182,-565.96,0.00014684,2]
[353607754,1739957097218,-500.0,0.00014684,2]
[353607755,1739957097254,-988.21,0.00014684,2]
[353607756,1739957097290,-1121.54,0.00014684,2]
[353607757,1739957097326,-288.32645757,0.00014684,2]
[353607758,1739957097363,-500.52,0.00014684,2]
[353607759,1739957097399,-500.0,0.00014684,2]
[353607760,1739957097434,-500.0,0.00014684,2]
[353607761,1739957097469,-1126.66,0.00014684,2]
[353607762,1739957097504,-628.69,0.00014684,2]
[353607763,1739957097539,-500.0,0.00014684,2]
[353607764,1739957097574,-500.0,0.00014684,2]
[353607765,1739957097608,-167.4374265,0.00014684,2]
[353607766,1739957097643,-883.27,0.00014684,2]
[353607767,1739957097680,-777.31,0.00014684,2]
[353607768,1739957097716,-500.0,0.00014684,2]
[353607769,1739957097753,-601.15,0.00014684,2]
[353607770,1739957097789,-347.89257449,0.00014684,2]
[353607771,1739957097827,-653.11,0.00014684,2]
[353607772,1739957097864,-777.33,0.00014684,2]
[353607773,1739957097907,-500.0,0.00014684,2]
[353607774,1739957097948,-523.08,0.00014684,2]
[353607775,1739957097987,-1044.61,0.00014684,2]
[353607776,1739957098024,-712.57,0.00014684,2]
[353607777,1739957098061,-540.46,0.00014684,2]
[353607778,1739957098098,-777.07,0.00014684,2]
[353607779,1739957098134,-687.05,0.00014684,2]
[353607780,1739957098171,-500.0,0.00014684,2]
[353607781,1739957098207,-879.81,0.00014684,2]
[353607782,1739957098244,-500.0,0.00014684,2]
[353607783,1739957098279,-525.83,0.00014684,2]
[353607784,1739957098315,-625.39,0.00014684,2]
[353607785,1739957098355,-888.05,0.00014684,2]
[353607786,1739957098392,-787.18,0.00014684,2]
[353607787,1739957098429,-781.66,0.00014684,2]
[353607788,1739957098468,-532.61,0.00014684,2]
[353607789,1739957098736,-596.76,0.00014684,2]
[353607790,1739957098775,-536.22,0.00014684,2]
[353607791,1739957098814,-500.0,0.00014684,2]
[353607792,1739957098855,-914.58,0.00014684,2]
[353607793,1739957098896,-500.0,0.00014684,2]
[353607794,1739957098933,-500.0,0.00014684,2]
[353607795,1739957098972,-657.0,0.00014684,2]
[353607796,1739957099007,-727.68,0.00014684,2]
[353607797,1739957099043,-1554.06,0.00014684,2]
[353607798,1739957099080,-594.44,0.00014684,2]
[353607799,1739957099116,-1286.14,0.00014684,2]
[353607800,1739957099154,-539.19,0.00014684,2]
[353607801,1739957099192,-731.14,0.00014684,2]
[353607802,1739957099228,-523.74,0.00014684,2]
[353607803,1739957099264,-500.0,0.00014684,2]
[353607804,1739957099300,-1494.76,0.00014684,2]
[353607805,1739957099337,-500.0,0.00014684,2]
[353607806,1739957099373,-500.0,0.00014684,2]
[353607807,1739957099408,-656.29,0.00014684,2]
[353607808,1739957099444,-500.0,0.00014684,2]
[353607809,1739957099479,-500.0,0.00014684,2]
[353607810,1739957099515,-1380.28,0.00014684,2]
[353607811,1739957099549,-280.66950288,0.00014684,2]
[353607812,1739957099583,-500.0,0.00014684,2]
[353607813,1739957099617,-500.0,0.00014684,2]
[353607814,1739957099652,-1469.68,0.00014684,2]
[353607815,1739957099686,-500.0,0.00014684,2]
[353607816,1739957099720,-500.0,0.00014684,2]
[353607817,1739957099753,-1629.48,0.00014684,2]
[353607818,1739957099787,-500.0,0.00014684,2]
[353607819,1739957099822,-506.69,0.00014684,2]
[353607820,1739957099858,-500.0,0.00014684,2]
[353607821,1739957099897,-1643.27,0.00014684,2]
[353607822,1739957099935,-500.0,0.00014684,2]
[353607823,1739957099972,-500.07,0.00014684,2]
[353607824,1739957100007,-1374.04,0.00014684,2]
[353607825,1739957100043,-500.0,0.00014684,2]
[353607826,1739957100081,-500.0,0.00014684,2]
[353607827,1739957100118,-2880.46,0.00014684,2]
[353607828,1739957100155,-500.0,0.00014684,2]
[353607829,1739957100191,-500.0,0.00014684,2]
[353607830,1739957100225,-500.0,0.00014684,2]
[353607831,1739957100259,-708.89,0.00014684,2]
[353607832,1739957100295,-1303.36,0.00014684,2]
[353607833,1739957100332,-500.0,0.00014684,2]
[353607834,1739957100369,-500.0,0.00014684,2]
[353607835,1739957100405,-626.2,0.00014684,2]
[353607836,1739957100439,-500.0,0.00014684,2]
[353607837,1739957100475,-500.0,0.00014684,2]
[353607838,1739957100509,-691.7,0.00014684,2]
[353607839,1739957100543,-500.0,0.00014684,2]
[353607840,1739957100579,-598.12,0.00014684,2]
[353607841,1739957100613,-500.0,0.00014684,2]
[353607842,1739957100647,-500.0,0.00014684,2]
[353607843,1739957100682,-1590.92,0.00014684,2]
[353607844,1739957100717,-629.55,0.00014684,2]
[353607845,1739957100756,-956.27,0.00014684,2]
[353607846,1739957100792,-500.0,0.00014684,2]
[353607847,1739957100827,-500.89,0.00014684,2]
[353607848,1739957100861,-239.00338583,0.00014684,2]
[353607849,1739957100900,-848.21,0.00014684,2]
[353607850,1739957100936,-500.0,0.00014684,2]
[353607851,1739957100974,-998.89,0.00014684,2]
[353607852,1739957101009,-782.0,0.00014684,2]
[353607853,1739957101044,-500.0,0.00014684,2]
[353607854,1739957101077,-500.0,0.00014684,2]
[353607855,1739957101110,-840.54,0.00014684,2]
[353607856,1739957101143,-500.0,0.00014684,2]
[353607857,1739957101175,-632.82,0.00014684,2]
[353607858,1739957101208,-1192.42,0.00014684,2]
[353607859,1739957101243,-500.0,0.00014684,2]
[353607860,1739957101276,-500.0,0.00014684,2]
[353607861,1739957101309,-657.73,0.00014684,2]
[353607862,1739957101344,-500.0,0.00014684,2]
[353607863,1739957101376,-825.98,0.00014684,2]
[353607864,1739957101409,-1447.73,0.00014684,2]
[353607865,1739957101441,-500.0,0.00014684,2]
[353607866,1739957101476,-719.81,0.00014684,2]
[353607867,1739957101510,-500.0,0.00014684,2]
[353607868,1739957101544,-1285.19,0.00014684,2]
[353607869,1739957101575,-500.0,0.00014684,2]
[353607870,1739957101608,-500.0,0.00014684,2]
[353607871,1739957101640,-500.0,0.00014684,2]
[353607872,1739957101672,-2760.81,0.00014684,2]
[353607873,1739957101705,-500.0,0.00014684,2]
[353607874,1739957101739,-1429.12,0.00014684,2]
[353607875,1739957101772,-535.98,0.00014684,2]
[353607876,1739957101809,-1108.97,0.00014684,2]
[353607877,1739957101843,-560.79,0.00014684,2]
[353607878,1739957101881,-1725.34,0.00014684,2]
[353607879,1739957101920,-500.0,0.00014684,2]
[353607880,1739957101959,-583.25,0.00014684,2]
[353607881,1739957101997,-778.14,0.00014684,2]
[353607882,1739957102034,-192.19386567,0.00014684,2]
[353607883,1739957102068,-500.0,0.00014684,2]
[353607884,1739957102103,-783.42,0.00014684,2]
[353607885,1739957102139,-2405.75,0.00014684,2]
[353607886,1739957102175,-5296.1,0.00014684,2]
[353607887,1739957102210,-2043.27,0.00014684,2]
[353607888,1739957102247,-1078.1,0.00014684,2]
[353607889,1739957102282,-1534.33,0.00014684,2]
[353607890,1739957102319,-500.0,0.00014684,2]
[353607891,1739957102355,-647.07,0.00014684,2]
[353607892,1739957102391,-500.0,0.00014684,2]
[353607893,1739957102427,-738.28,0.00014684,2]
[353607894,1739957102461,-1051.18,0.00014684,2]
[353607895,1739957102497,-1093.24,0.00014684,2]
[353607896,1739957102531,-500.0,0.00014684,2]
[353607897,1739957102565,-1295.32,0.00014684,2]
[353607898,1739957102600,-2278.72,0.00014684,2]
[353607899,1739957102634,-1455.08,0.00014684,2]
[353607900,1739957102667,-500.0,0.00014684,2]
[353607901,1739957102703,-500.0,0.00014684,2]
[353607902,1739957102738,-572.16,0.00014684,2]
[353607903,1739957102773,-929.06,0.00014684,2]
[353607904,1739957102807,-1119.05,0.00014684,2]
[353607905,1739957102840,-967.27,0.00014684,2]
[353607906,1739957102875,-500.0,0.00014684,2]
[353607907,1739957102912,-500.0,0.00014684,2]
[353607908,1739957102956,-500.0,0.00014684,2]
[353607909,1739957102997,-770.13,0.00014684,2]
[353607910,1739957103037,-500.0,0.00014684,2]
[353607911,1739957103084,-4255.25,0.00014684,2]
[353607912,1739957103126,-500.0,0.00014684,2]
[353607913,1739957103171,-1120.64,0.00014684,2]
[353607914,1739957103214,-500.0,0.00014684,2]
[353607915,1739957103261,-500.0,0.00014684,2]
[353607916,1739957103310,-1021.92,0.00014684,2]
[353607917,1739957103355,-680.04,0.00014684,2]
[353607918,1739957103400,-500.0,0.00014684,2]
[353607919,1739957103445,-1015.43,0.00014684,2]
[353607920,1739957103493,-500.0,0.00014684,2]
[353607921,1739957103537,-500.0,0.00014684,2]
[353607922,1739957103581,-909.24,0.00014684,2]
[353607923,1739957103624,-500.0,0.00014684,2]
[353607924,1739957103663,-500.0,0.00014684,2]
[353607925,1739957103705,-500.0,0.00014684,2]
[353607926,1739957103747,-1252.15,0.00014684,2]
[353607927,1739957103789,-500.0,0.00014684,2]
[353607928,1739957103833,-724.82,0.00014684,2]
[353607929,1739957103879,-604.92,0.00014684,2]
[353607930,1739957103923,-855.46,0.00014684,2]
[353607931,1739957103966,-500.0,0.00014684,2]
[353607932,1739957104009,-736.01,0.00014684,2]
[353607933,1739957104050,-1283.84,0.00014684,2]
[353607934,1739957104092,-500.0,0.00014684,2]
[353607935,1739957104135,-745.89,0.00014684,2]
[353607936,1739957104179,-1926.5,0.00014684,2]
[353607937,1739957104480,-1055.67,0.00014684,2]
[353607938,1739957104519,-627.81,0.00014684,2]
[353607939,1739957104560,-500.0,0.00014684,2]
[353607940,1739957104600,-776.57,0.00014684,2]
[353607941,1739957104640,-500.0,0.00014684,2]
[353607942,1739957104679,-733.08,0.00014684,2]
[353607943,1739957104717,-547.75,0.00014684,2]
[353607944,1739957104768,-500.0,0.00014684,2]
[353607945,1739957104811,-529.59,0.00014684,2]
[353607946,1739957104855,-4362.54,0.00014684,2]
[353607947,1739957104919,-500.0,0.00014684,2]
[353607948,1739957104966,-500.0,0.00014684,2]
[353607949,1739957105016,-691.67,0.00014684,2]
[353607950,1739957105077,-580.48,0.00014684,2]
[353607951,1739957105120,-1333.98,0.00014684,2]
[353607952,1739957105168,-2090.9,0.00014684,2]
[353607953,1739957105212,-823.1,0.00014684,2]
[353607954,1739957105259,-733.25,0.00014684,2]
[353607955,1739957105303,-552.5,0.00014684,2]
[353607956,1739957105346,-1331.05,0.00014684,2]
[353607957,1739957105388,-161.20324356,0.00014749,2]
[353607958,1739957105430,-1114.8559067,0.00014757,2]
[353607959,1739957105475,-773.8832168,0.00014757,2]
[353607960,1739957105524,-303.6119941,0.00014757,2]
[353607961,1739957105570,-194.5583732,0.00014757,2]
[353607962,1739957105613,-500.0,0.00014767,2]
[353607963,1739957105655,-543.01,0.00014767,2]
[353607964,1739957105696,-634.82,0.00014767,2]
[353607965,1739957105738,-528.5336442,0.00014767,2]
[353607966,1739957105781,-541.04,0.00014767,2]
[353607967,1739957105822,-634.71238733,0.00014767,2]
[353607968,1739957105861,-725.34,0.00014767,2]
[353607969,1739957105906,-778.48,0.00014767,2]
[353607970,1739957105950,-522.4076085,0.00014767,2]
[353607971,1739957105994,-633.81,0.00014767,2]
[353607972,1739957106036,-562.62,0.00014767,2]
[353607973,1739957106078,-844.44,0.00014767,2]
[353607974,1739957106120,-500.0,0.00014767,2]
[353607975,1739957106164,-500.0,0.00014767,2]
[353607976,1739957106204,-722.42,0.00014767,2]
[353607977,1739957106244,-510.18,0.00014767,2]
[353607978,1739957106285,-650.55,0.00014767,2]
[353607979,1739957106325,-500.0,0.00014767,2]
[353607980,1739957106366,-500.0,0.00014767,2]
[353607981,1739957106409,-500.0,0.00014767,2]
[353607982,1739957106450,-1055.45,0.00014767,2]
[353607983,1739957106493,-691.51,0.00014767,2]
[353607984,1739957106533,-909.51,0.00014767,2]
[353607985,1739957106573,-500.0,0.00014767,2]
[353607986,1739957106614,-667.83,0.00014767,2]
[353607987,1739957106659,-500.0,0.00014767,2]
[353607988,1739957106702,-531.54,0.00014767,2]
[353607989,1739957106744,-647.18,0.00014767,2]
[353607990,1739957106789,-500.0,0.00014767,2]
[353607991,1739957106829,-500.0,0.00014767,2]
[353607992,1739957106872,-930.4,0.00014767,2]
[353607993,1739957106913,-500.0,0.00014767,2]
[353607994,1739957106971,-625.34,0.00014767,2]
[353607995,1739957107022,-515.28,0.00014767,2]
[353607996,1739957107077,-551.52,0.00014767,2]
[353607997,1739957107116,-500.0,0.00014767,2]
[353607998,1739957107156,-500.0,0.00014767,2]
[353607999,1739957107195,-770.16,0.00014767,2]
[353608000,1739957107237,-500.0,0.00014767,2]
[353608001,1739957107274,-536.56984045,0.00014767,2]
[353608002,1739957107314,-500.0,0.00014767,2]
[353608003,1739957107355,-500.0,0.00014767,2]
[353608004,1739957107397,-500.0,0.00014767,2]
[353608005,1739957107447,-512.49,0.00014767,2]
[353608006,1739957107501,-533.08,0.00014767,2]
[353608007,1739957107570,-628.45,0.00014767,2]
[353608008,1739957107648,-743.05,0.00014767,2]
[353608009,1739957107700,-613.64259653,0.00014767,2]
[353608010,1739957107770,-1540.98,0.00014767,2]
[353608011,1739957107823,-545.22,0.00014767,2]
[353608012,1739957107893,-807.24,0.00014767,2]
[353608013,1739957107944,-514.11,0.00014767,2]
[353608014,1739957107988,-819.39,0.00014767,2]
[353608015,1739957108039,-572.21,0.00014767,2]
[353608016,1739957108102,-500.0,0.00014767,2]
[353608017,1739957108146,-649.94,0.00014767,2]
[353608018,1739957108185,-500.0,0.00014767,2]
[353608019,1739957108224,-1211.58,0.00014767,2]
[353608020,1739957108263,-1135.36,0.00014767,2]
[353608021,1739957108303,-722.48,0.00014767,2]
[353608022,1739957108342,-500.0,0.00014767,2]
[353608023,1739957108379,-1272.14,0.00014767,2]
[353608024,1739957108417,-712.89,0.00014767,2]
[353608025,1739957108456,-500.0,0.00014767,2]
[353608026,1739957108496,-500.0,0.00014767,2]
[353608027,1739957108538,-862.66,0.00014767,2]
[353608028,1739957108578,-1233.72,0.00014767,2]
[353608029,1739957108617,-740.17,0.00014767,2]
[353608030,1739957108658,-758.66,0.00014767,2]
[353608031,1739957108697,-500.0,0.00014767,2]
[353608032,1739957108738,-601.16,0.00014767,2]
[353608033,1739957108778,-593.48,0.00014767,2]
[353608034,1739957108820,-689.44,0.00014767,2]
[353608035,1739957108858,-500.0,0.00014767,2]
[353608036,1739957108899,-774.93,0.00014767,2]
[353608037,1739957108938,-500.0,0.00014767,2]
[353608038,1739957108980,-1397.033156,0.00014767,2]
[353608039,1739957109019,-500.0,0.00014767,2]
[353608040,1739957109062,-1325.26,0.00014767,2]
[353608041,1739957109103,-500.0,0.00014767,2]
[353608042,1739957109144,-500.0,0.00014767,2]
[353608043,1739957109183,-750.16,0.00014767,2]
[353608044,1739957109224,-500.0,0.00014767,2]
[353608045,1739957109265,-1394.43,0.00014767,2]
[353608046,1739957109306,-500.0,0.00014767,2]
[353608047,1739957109345,-500.0,0.00014767,2]
[353608048,1739957109384,-500.0,0.00014767,2]
[353608049,1739957109422,-638.51,0.00014767,2]
[353608050,1739957109461,-267.89852947,0.00014767,2]
[353608051,1739957109498,-500.0,0.00014767,2]
[353608052,1739957109537,-916.97,0.00014767,2]
[353608053,1739957109574,-500.0,0.00014767,2]
[353608054,1739957109611,-500.0,0.00014767,2]
[353608055,1739957109648,-571.77,0.00014767,2]
[353608056,1739957109686,-505.46369584,0.00014767,2]
[353608057,1739957109723,-535.59,0.00014767,2]
[353608058,1739957109762,-543.64,0.00014767,2]
[353608059,1739957109801,-1263.66,0.00014767,2]
[353608060,1739957109840,-646.22,0.00014767,2]
[353608061,1739957109881,-865.23,0.00014767,2]
[353608062,1739957109920,-592.33,0.00014767,2]
[353608063,1739957109960,-1825.346312,0.00014767,2]
[353608064,1739957109999,-646.68,0.00014767,2]
[353608065,1739957110038,-597.97,0.00014767,2]
[353608066,1739957110078,-694.2,0.00014767,2]
[353608067,1739957110116,-1174.15,0.00014767,2]
[353608068,1739957110153,-500.0,0.00014767,2]
[353608069,1739957110191,-878.0,0.00014767,2]
[353608070,1739957110230,-825.52,0.00014767,2]
[353608071,1739957110267,-500.0,0.00014767,2]
[353608072,1739957110306,-500.0,0.00014767,2]
[353608073,1739957110343,-500.0,0.00014767,2]
[353608074,1739957110383,-516.38,0.00014767,2]
[353608075,1739957110422,-500.0,0.00014767,2]
[353608076,1739957110460,-1264.71,0.00014767,2]
[353608077,1739957110499,-906.18,0.00014767,2]
[353608078,1739957110536,-500.0,0.00014767,2]
[353608079,1739957110574,-565.96,0.00014767,2]
[353608080,1739957110611,-500.0,0.00014767,2]
[353608081,1739957110648,-988.21,0.00014767,2]
[353608082,1739957110686,-1121.54,0.00014767,2]
[353608083,1739957110722,-500.52,0.00014767,2]
[353608084,1739957110762,-500.0,0.00014767,2]
[353608085,1739957110803,-500.0,0.00014767,2]
[353608086,1739957111031,-1126.66,0.00014767,2]
[353608087,1739957111072,-628.69,0.00014767,2]
[353608088,1739957111112,-519.92842076,0.00014767,2]
[353608089,1739957111151,-500.0,0.00014767,2]
[353608090,1739957111190,-777.31,0.00014767,2]
[353608091,1739957111229,-883.27,0.00014767,2]
[353608092,1739957111270,-500.0,0.00014767,2]
[353608093,1739957111310,-601.15,0.00014767,2]
[353608094,1739957111349,-653.11,0.00014767,2]
[353608095,1739957111391,-777.33,0.00014767,2]
[353608096,1739957111430,-500.0,0.00014767,2]
[353608097,1739957111469,-523.08,0.00014767,2]
[353608098,1739957111511,-1044.61,0.00014767,2]
[353608099,1739957111550,-712.57,0.00014767,2]
[353608100,1739957111598,-540.46,0.00014767,2]
[353608101,1739957111646,-777.07,0.00014767,2]
[353608102,1739957111692,-687.05,0.00014767,2]
[353608103,1739957111733,-500.0,0.00014767,2]
[353608104,1739957111772,-879.81,0.00014767,2]
[353608105,1739957111812,-500.0,0.00014767,2]
[353608106,1739957111865,-525.83,0.00014767,2]
[353608107,1739957111917,-625.39,0.00014767,2]
[353608108,1739957111964,-888.05,0.00014767,2]
[353608109,1739957112006,-787.18,0.00014767,2]
[353608110,1739957112047,-781.66,0.00014767,2]
[353608111,1739957112087,-532.61,0.00014767,2]
[353608112,1739957112129,-596.76,0.00014767,2]
[353608113,1739957112172,-536.22,0.00014767,2]
[353608114,1739957112215,-500.0,0.00014767,2]
[353608115,1739957112258,-914.58,0.00014767,2]
[353608116,1739957112298,-500.0,0.00014767,2]
[353608117,1739957112339,-500.0,0.00014767,2]
[353608118,1739957112384,-657.0,0.00014767,2]
[353608119,1739957112426,-727.68,0.00014767,2]
[353608120,1739957112470,-1554.06,0.00014767,2]
[353608121,1739957112518,-594.44,0.00014767,2]
[353608122,1739957112559,-1286.14,0.00014767,2]
[353608123,1739957112600,-539.19,0.00014767,2]
[353608124,1739957112642,-731.14,0.00014767,2]
[353608125,1739957112683,-523.74,0.00014767,2]
[353608126,1739957112723,-619.62939514,0.00014767,2]
[353608127,1739957112768,-1494.76,0.00014767,2]
[353608128,1739957112812,-500.0,0.00014767,2]
[353608129,1739957112853,-500.0,0.00014767,2]
[353608130,1739957112899,-656.29,0.00014767,2]
[353608131,1739957112941,-500.0,0.00014767,2]
[353608132,1739957112980,-500.0,0.00014767,2]
[353608133,1739957113032,-1380.28,0.00014767,2]
[353608134,1739957113088,-500.0,0.00014767,2]
[353608135,1739957113140,-500.0,0.00014767,2]
[353608136,1739957113179,-1469.68,0.00014767,2]
[353608137,1739957113221,-500.0,0.00014767,2]
[353608138,1739957113262,-500.0,0.00014767,2]
[353608139,1739957113302,-1629.48,0.00014767,2]
[353608140,1739957113343,-500.0,0.00014767,2]
[353608141,1739957113387,-506.69,0.00014767,2]
[353608142,1739957113438,-504.40881855,0.00014767,2]
[353608143,1739957113537,-1643.27,0.00014767,2]
[353608144,1739957113617,-500.0,0.00014767,2]
[353608145,1739957113678,-500.07,0.00014767,2]
[353608146,1739957113719,-1374.04,0.00014767,2]
[353608147,1739957113761,-500.0,0.00014767,2]
[353608148,1739957113803,-500.0,0.00014767,2]
[353608149,1739957113845,-2880.46,0.00014767,2]
[353608150,1739957113886,-500.0,0.00014767,2]
[353608151,1739957113931,-500.0,0.00014767,2]
[353608152,1739957113972,-500.0,0.00014767,2]
[353608153,1739957114013,-708.89,0.00014767,2]
[353608154,1739957114051,-1303.36,0.00014767,2]
[353608155,1739957114091,-500.0,0.00014767,2]
[353608156,1739957114133,-626.2,0.00014767,2]
[353608157,1739957114175,-500.0,0.00014767,2]
[353608158,1739957114215,-500.0,0.00014767,2]
[353608159,1739957114257,-500.0,0.00014767,2]
[353608160,1739957114297,-691.7,0.00014767,2]
[353608161,1739957114336,-500.0,0.00014767,2]
[353608162,1739957114376,-598.12,0.00014767,2]
[353608163,1739957114415,-500.0,0.00014767,2]
[353608164,1739957114453,-517.81253757,0.00014767,2]
[353608165,1739957114492,-1590.92,0.00014767,2]
[353608166,1739957114533,-629.55,0.00014767,2]
[353608167,1739957114575,-956.27,0.00014767,2]
[353608168,1739957114616,-500.0,0.00014767,2]
[353608169,1739957114658,-500.89,0.00014767,2]
[353608170,1739957114700,-848.21,0.00014767,2]
[353608171,1739957114743,-500.0,0.00014767,2]
[353608172,1739957114787,-998.89,0.00014767,2]
[353608173,1739957114831,-782.0,0.00014767,2]
[353608174,1739957114879,-500.0,0.00014767,2]
[353608175,1739957114924,-500.0,0.00014767,2]
[353608176,1739957114969,-840.54,0.00014767,2]
[353608177,1739957115017,-500.0,0.00014767,2]
[353608178,1739957115064,-632.82,0.00014767,2]
[353608179,1739957115110,-1192.42,0.00014767,2]